{"text_format":"1","workbook":"xlsx","n_sheets":3,"sheets":["BoQ1","BoQ2","Macros"],"not_rendered":{"charts":0,"images":0,"macros":1,"external_links":2,"defined_names":29,"comments":1,"pivot_tables":0},"unopened":[],"bounds":{"document_bytes":16777216,"sheet_cells":100000,"rows_first":2000,"rows_last":500,"rows_between":2000,"halvings":0,"cell_chars":16384,"cell_head_chars":4096},"cells_cut":0,"cells_raw":0,"read":"whole","date_system":"1900"}

{"sheet":"BoQ1","index":0,"n_rows":17,"n_cols":243,"rows_kept":17,"cut":false,"hidden":true,"merged":[[8,0,8,54],[16,2,16,54],[0,0,0,11],[3,0,3,54],[4,0,4,54],[5,0,5,54],[6,0,6,54],[7,1,7,54]]}
[{"$f":"B2& \" BoQ\"","v":"Item Rate BoQ"}]
["BoQ_Ver3.0","Item Rate","Normal","INR Only","INR"]
["Select, Excess (+), Less (-)",null,"Less (-)"]
["Tender Inviting Authority: JABALPUR SMART CITY LIMITED"]
["Name of Work: Design, Supply and Installation of tensile membrane roof covering with supporting system and related  civil & Drainage  works at Galaua Taal, Jabalpur "]
["Contract No:  "]
[" "]
["Name of the Bidder/ Bidding Firm / Company :"]
["PRICE SCHEDULE\n(This BOQ template must not be modified/replaced by the bidder and the same should be uploaded after filling the relevent columns, else the bidder is liable to be rejected for this tender. Bidders are allowed to enter the Bidder Name and Values only )"]
["NUMBER #","TEXT #","TEXT #","NUMBER #","TEXT #","NUMBER","NUMBER","TEXT","TEXT #","NUMBER #","TEXT#","TEXT #","NUMBER #","NUMBER","NUMBER","NUMBER","NUMBER","TEXT","TEXT","NUMBER","NUMBER","NUMBER","NUMBER","TEXT","TEXT","NUMBER","NUMBER","NUMBER","NUMBER","TEXT","TEXT","NUMBER","NUMBER","NUMBER","NUMBER","TEXT","TEXT","NUMBER","NUMBER","NUMBER","NUMBER","TEXT","TEXT","NUMBER","NUMBER","NUMBER #","NUMBER #","TEXT","TEXT","NUMBER #","NUMBER #","DATE","NUMBER #","NUMBER #","TEXT #"]
["Sl.\nNo.","Item Description","Item Code / Make","Quantity","Units","Estimated Rate\nin\nRs.      P",null,null,"Addition / Deduction","Addition / Deduction Values","Currency Convertion against each Item","Quoted Currency in INR / Other Currency","BASIC RATE In Figures To be entered by the Bidder in\nRs.      P\n ","Excise Duty","VAT","Freight Charges ( Unloading & Stacking)","Any Other Taxes/Duties/Levies",null,null,"Other Taxes 2","IIIrd Party i.e DGS&D / RITES etc Inspection Charges @0.34%+Service Tax","Less for Cenvat Credit,if any respect of Supplies Under full Excise Duty Category ",null,null,null,null,null,null,null,null,null,null,null,null,null,null,null,null,null,null,null,null,null,null,null,null,null,null,null,null,null,null,"TOTAL AMOUNT  Without Taxes\nin\nRs.      P","TOTAL AMOUNT  With Taxes","TOTAL AMOUNT \nIn Words"]
[1,2,3,4,5,6,7,8,9,10,11,12,13,14,15,16,17,18,19,20,21,22,23,24,25,26,27,28,29,30,31,32,33,34,35,36,37,38,39,40,41,42,43,44,45,46,47,48,49,50,51,52,53,54,55]
[1,"Design, Supply and Installation of tensile membrane roof covering with supporting system",null,null,null,null,null,null,null,null,null,null,null,null,null,null,null,null,null,null,null,null,null,null,null,null,null,null,null,null,null,null,null,null,null,null,null,null,null,null,null,null,null,null,null,null,null,null,null,null,null,null,null,null,null,null,null,null,null,null,null,null,null,null,null,null,null,null,null,null,null,null,null,null,null,null,null,null,null,null,null,null,null,null,null,null,null,null,null,null,null,null,null,null,null,null,null,null,null,null,null,null,null,null,null,null,null,null,null,null,null,null,null,null,null,null,null,null,null,null,null,null,null,null,null,null,null,null,null,null,null,null,null,null,null,null,null,null,null,null,null,null,null,null,null,null,null,null,null,null,null,null,null,null,null,null,null,null,null,null,null,null,null,null,null,null,null,null,null,null,null,null,null,null,null,null,null,null,null,null,null,null,null,null,null,null,null,null,null,null,null,null,null,null,null,null,null,null,null,null,null,null,null,null,null,null,null,null,null,null,null,null,null,null,null,null,null,null,null,null,null,null,null,null,null,null,null,null,null,null,null,null,null,null,null,null,null,null,1,"Construction of chamber for 100mm sluices valve","item1",10,"1 Nos"]
[1.01,"Design, Fabrication, Supply  & Installation at site of :- Steel work in built up tubular(SHS/RHS/CHS), MS rolled structural members such as Angles, Channels & Plates etc.  including cutting, hoisting fixing in position, welded and bolted including special shaped washers etc. complete as per direction of Engineer in charge Hot finished welded type tubes, Confirming ERW Pipes \"IS 1161 / IS 1239 YST 310/240\" Upto 350mm dia \"IS 3589 YST 310/240\"(for above  350mm  dia)  SHS/RHS  \"IS  4923\"   (TATA  /  JINDAL  / BHUSHAN / SAIL) and plate as per \"IS 2062 E250\" all plates to be CNC profile cut, Steel work cost includes architectural covering with SS 316 sheet of the gutter ring, clits & insert tubes for light fixing, drainage pipe & electrical cable pipe to be  GI with elbows and bends cladded with Fabric TYPE  II  PVC  coated  polyester,  surface  coating  of  \"cross  link PVDF\" wt of 1050 GSM, Tensile strength of 430/430 Dan/5Cm, light transmittance of 8%, (Ferrari /Mehler or equivalent), Tensioned over steel frames with all fittings and fixtures such as catenary cables , membrane plates, swedge, fork etc. as per the direction of Engineer in Charge.  inclusive of design, providing and fixing fabric with all necessary accessories as required as per approved design complete.  (Material  Specification  :-Tie  Cables  Galvanized  Steel Core (Make :- Usha Martin / Bharat Wire Rope etc.), Material of End terminals and Nut bolts SS 304, forged HDGI bow shackles, End plates Mild Steel with Hot dip galvanized along with powder coating , Fabric Fixing Nuts and bolts HDG with 80 microns all complete.",null,3200,"SqM",7750,null,null,"Excess(+)",{"$f":"IF(I14=\"Less(-)\",-1,1)","v":1},"Full Conversion","INR",null,null,null,null,null,null,null,null,null,null,null,null,null,null,null,null,null,null,null,null,null,null,null,null,null,null,null,null,null,null,null,null,null,null,null,null,null,null,null,null,{"$f":"total_amount_ba($B$2,$D$2,D14,F14,J14,K14,M14)","v":0},{"$f":"BA14+SUM(N14:AZ14)","v":0},{"$f":"SpellNumber(L14,BB14)","v":"INR Zero Only"},null,null,null,null,null,null,null,null,null,null,null,null,null,null,null,null,null,null,null,null,null,null,null,null,null,null,null,null,null,null,null,null,null,null,null,null,null,null,null,null,null,null,null,null,null,null,null,null,null,null,null,null,null,null,null,null,null,null,null,null,null,null,null,null,null,null,null,null,null,null,null,null,null,null,null,null,null,null,null,null,null,null,null,null,null,null,null,null,null,null,null,null,null,null,null,null,null,null,null,null,null,null,null,null,null,null,null,null,null,null,null,null,null,null,null,null,null,null,null,null,null,null,null,null,null,null,null,null,null,null,null,null,null,null,null,null,null,null,null,null,null,null,null,null,null,null,null,null,null,null,null,null,null,null,null,null,null,null,null,null,null,null,null,null,null,null,null,null,null,null,null,null,null,null,null,null,null,null,null,null,null,null,null,1.01,"Supplying, Conveying and fixing spls. Including eart","item1",123.223,"Nos"]
["Total in Figures",null,null,null,null,null,null,null,null,null,null,null,null,null,null,null,null,null,null,null,null,null,null,null,null,null,null,null,null,null,null,null,null,null,null,null,null,null,null,null,null,null,null,null,null,null,null,null,null,null,null,null,{"$f":"SUM(BA13:BA14)","v":0},{"$f":"SUM(BB13:BB14)","v":0},{"$f":"SpellNumber($E$2,BB15)","v":"INR Zero Only"},null,null,null,null,null,null,null,null,null,null,null,null,null,null,null,null,null,null,null,null,null,null,null,null,null,null,null,null,null,null,null,null,null,null,null,null,null,null,null,null,null,null,null,null,null,null,null,null,null,null,null,null,null,null,null,null,null,null,null,null,null,null,null,null,null,null,null,null,null,null,null,null,null,null,null,null,null,null,null,null,null,null,null,null,null,null,null,null,null,null,null,null,null,null,null,null,null,null,null,null,null,null,null,null,null,null,null,null,null,null,null,null,null,null,null,null,null,null,null,null,null,null,null,null,null,null,null,null,null,null,null,null,null,null,null,null,null,null,null,null,null,null,null,null,null,null,null,null,null,null,null,null,null,null,null,null,null,null,null,null,null,null,null,null,null,null,null,null,null,null,null,null,null,null,null,null,null,null,null,null,null,null,null,4,"Construction of chamber for 100mm sluice plates","item5",10,"Nos"]
["Quoted Rate in Figures",null,null,null,"Select",null,null,null,null,null,null,null,null,null,null,null,null,null,null,null,null,null,null,null,null,null,null,null,null,null,null,null,null,null,null,null,null,null,null,null,null,null,null,null,null,null,null,null,null,null,null,null,{"$f":"IF(ISBLANK(F16),0,IF(E16=\"Excess (+)\",ROUND(BA15+(BA15*F16),2),IF(E16=\"Less (-)\",ROUND(BA15+(BA15*F16*(-1)),2),0)))","v":0},{"$f":"ROUND(BA16,0)","v":0},{"$f":"SpellNumber(L16,BB16)","v":" Zero Only"}]
["Quoted Rate in Words",null,{"$f":"SpellNumber($E$2,BB15)","v":"INR Zero Only"}]

{"sheet":"BoQ2","index":1,"n_rows":39,"n_cols":243,"rows_kept":39,"cut":false,"hidden":true,"merged":[[8,0,8,54],[38,2,38,54],[0,0,0,11],[3,0,3,54],[4,0,4,54],[5,0,5,54],[6,0,6,54],[7,1,7,54]]}
[{"$f":"B2& \" BoQ\"","v":"Percentage BoQ"}]
["BoQ_Ver3.0","Percentage","Normal","INR Only","INR"]
["Select, At Par, Excess (+), Less (-)",null,"IOCL"]
["Tender Inviting Authority: JABALPUR SMART CITY LIMITED"]
["Name of Work: Design, Supply and Installation of tensile membrane roof covering with supporting system and related  civil & Drainage  works at Galaua Taal, Jabalpur "]
["Contract No:  "]
[" "]
["Name of the Bidder/ Bidding Firm / Company :"]
["PRICE SCHEDULE\n(This BOQ template must not be modified/replaced by the bidder and the same should be uploaded after filling the relevent columns, else the bidder is liable to be rejected for this tender. Bidders are allowed to enter the Bidder Name and Values only )"]
["NUMBER #","TEXT #","TEXT #","NUMBER #","TEXT #","NUMBER","NUMBER","TEXT","TEXT #","NUMBER #","TEXT#","TEXT #","NUMBER #","NUMBER","NUMBER","NUMBER","NUMBER","TEXT","TEXT","NUMBER","NUMBER","NUMBER","NUMBER","TEXT","TEXT","NUMBER","NUMBER","NUMBER","NUMBER","TEXT","TEXT","NUMBER","NUMBER","NUMBER","NUMBER","TEXT","TEXT","NUMBER","NUMBER","NUMBER","NUMBER","TEXT","TEXT","NUMBER","NUMBER","NUMBER #","NUMBER #","TEXT","TEXT","NUMBER #","NUMBER #","DATE","NUMBER #","NUMBER #","TEXT #"]
["Sl.\nNo.","Item Description","Item Code / Make","Quantity","Units","Estimated Rate\nin\nRs.      P",null,null,"Addition / Deduction","Addition / Deduction Values","Currency Convertion against each Item","Quoted Currency in INR / Other Currency","BASIC RATE In Figures To be entered by the Bidder \nRs.      P\n ","Excise Duty","VAT","Freight Charges ( Unloading & Stacking)","Any Other Taxes/Duties/Levies",null,null,"Other Taxes 2","IIIrd Party i.e DGS&D / RITES etc Inspection Charges @0.34%+Service Tax","Less for Cenvat Credit,if any respect of Supplies Under full Excise Duty Category ",null,null,null,null,null,null,null,null,null,null,null,null,null,null,null,null,null,null,null,null,null,null,null,null,null,null,null,null,null,null,"TOTAL AMOUNT  Without Taxes\nin\nRs.      P","TOTAL AMOUNT  With Taxes","TOTAL AMOUNT \nIn Words"]
[1,2,3,4,5,6,7,8,9,10,11,12,13,14,15,16,17,18,19,20,21,22,23,24,25,26,27,28,29,30,31,32,33,34,35,36,37,38,39,40,41,42,43,44,45,46,47,48,49,50,51,52,53,54,55]
[1,"DRAINAGE"]
[1.01,"EARTHWORK \nEarth work in Excavation for pipe trench in all kinds of soil and WBM in areas including dressing, watering and ramming and disposal of Excavated earth lead upto 50 meters and lift upto 1.5m, disposal earth to be leveled, neatly dressed.",null,111.1,"CuM",116.19,null,null,"Excess(+)",{"$f":"IF(I14=\"Less(-)\",-1,1)","v":1},"Full Conversion","INR",null,null,null,null,null,null,null,null,null,null,null,null,null,null,null,null,null,null,null,null,null,null,null,null,null,null,null,null,null,null,null,null,null,null,null,null,null,null,null,null,{"$f":"total_amount_ba($B$2,$D$2,D14,F14,J14,K14,M14)","v":12908.71},{"$f":"BA14+SUM(N14:AZ14)","v":12908.71},{"$f":"SpellNumber(L14,BB14)","v":"INR  Twelve Thousand Nine Hundred & Eight  and Paise Seventy One Only"},null,null,null,null,null,null,null,null,null,null,null,null,null,null,null,null,null,null,null,null,null,null,null,null,null,null,null,null,null,null,null,null,null,null,null,null,null,null,null,null,null,null,null,null,null,null,null,null,null,null,null,null,null,null,null,null,null,null,null,null,null,null,null,null,null,null,null,null,null,null,null,null,null,null,null,null,null,null,null,null,null,null,null,null,null,null,null,null,null,null,null,null,null,null,null,null,null,null,null,null,null,null,null,null,null,null,null,null,null,null,null,null,null,null,null,null,null,null,null,null,null,null,null,null,null,null,null,null,null,null,null,null,null,null,null,null,null,null,null,null,null,null,null,null,null,null,null,null,null,null,null,null,null,null,null,null,null,null,null,null,null,null,null,null,null,null,null,null,null,null,null,null,null,null,null,null,null,null,null,null,null,null,null,1.01,"Supplying, Conveying and fixing spls. Including eart","item1",123.223,"Nos"]
[1.02,"Providing & laying mechanically mixed cement concrete 20mm maximum size graded crushed stone including cost of centering & shuttering.\nIn Plinth & foundation\nM-15 Concrete",null,9.9,"CuM",300,null,null,"Excess(+)",{"$f":"IF(I15=\"Less(-)\",-1,1)","v":1},"Full Conversion","INR",null,null,null,null,null,null,null,null,null,null,null,null,null,null,null,null,null,null,null,null,null,null,null,null,null,null,null,null,null,null,null,null,null,null,null,null,null,null,null,null,3888.9,{"$f":"BA15+SUM(N15:AZ15)","v":3888.9},{"$f":"SpellNumber(L15,BB15)","v":"INR  Three Thousand Eight Hundred & Eighty Eight  and Paise Ninety Only"},null,null,null,null,null,null,null,null,null,null,null,null,null,null,null,null,null,null,null,null,null,null,null,null,null,null,null,null,null,null,null,null,null,null,null,null,null,null,null,null,null,null,null,null,null,null,null,null,null,null,null,null,null,null,null,null,null,null,null,null,null,null,null,null,null,null,null,null,null,null,null,null,null,null,null,null,null,null,null,null,null,null,null,null,null,null,null,null,null,null,null,null,null,null,null,null,null,null,null,null,null,null,null,null,null,null,null,null,null,null,null,null,null,null,null,null,null,null,null,null,null,null,null,null,null,null,null,null,null,null,null,null,null,null,null,null,null,null,null,null,null,null,null,null,null,null,null,null,null,null,null,null,null,null,null,null,null,null,null,null,null,null,null,null,null,null,null,null,null,null,null,null,null,null,null,null,null,null,null,null,null,null,null,1.02,"Construction of chamber for 100mm sluice plates","item2",213,"Nos"]
[1.03,"Filling with moorum for pipe bedding or over the pipe including supply of moorum.",null,45.5,"CuM",562.5,null,null,"Excess(+)",{"$f":"IF(I16=\"Less(-)\",-1,1)","v":1},"Full Conversion","INR",null,null,null,null,null,null,null,null,null,null,null,null,null,null,null,null,null,null,null,null,null,null,null,null,null,null,null,null,null,null,null,null,null,null,null,null,null,null,null,null,{"$f":"total_amount_ba($B$2,$D$2,D16,F16,J16,K16,M16)","v":25593.75},{"$f":"BA16+SUM(N16:AZ16)","v":25593.75},{"$f":"SpellNumber(L16,BB16)","v":"INR  Twenty Five Thousand Five Hundred & Ninety Three  and Paise Seventy Five Only"},null,null,null,null,null,null,null,null,null,null,null,null,null,null,null,null,null,null,null,null,null,null,null,null,null,null,null,null,null,null,null,null,null,null,null,null,null,null,null,null,null,null,null,null,null,null,null,null,null,null,null,null,null,null,null,null,null,null,null,null,null,null,null,null,null,null,null,null,null,null,null,null,null,null,null,null,null,null,null,null,null,null,null,null,null,null,null,null,null,null,null,null,null,null,null,null,null,null,null,null,null,null,null,null,null,null,null,null,null,null,null,null,null,null,null,null,null,null,null,null,null,null,null,null,null,null,null,null,null,null,null,null,null,null,null,null,null,null,null,null,null,null,null,null,null,null,null,null,null,null,null,null,null,null,null,null,null,null,null,null,null,null,null,null,null,null,null,null,null,null,null,null,null,null,null,null,null,null,null,null,null,null,null,2,"Construction of chamber for 100mm sluices valve","item3",10,"Nos"]
[1.04,"Filling available excavated earth in trenches, plinth sides of foundation in layers not exceeding 20cm. in depth including consolidation of each layer by ramming watering, lead up to 50m and lift up to 1.5m in all kinds of soils",null,19.8,"Nos",26.1,null,null,"Excess(+)",{"$f":"IF(I17=\"Less(-)\",-1,1)","v":1},"Full Conversion","INR",null,null,null,null,null,null,null,null,null,null,null,null,null,null,null,null,null,null,null,null,null,null,null,null,null,null,null,null,null,null,null,null,null,null,null,null,null,null,null,null,{"$f":"total_amount_ba($B$2,$D$2,D17,F17,J17,K17,M17)","v":516.78},{"$f":"BA17+SUM(N17:AZ17)","v":516.78},{"$f":"SpellNumber(L17,BB17)","v":"INR  Five Hundred & Sixteen  and Paise Seventy Eight Only"},null,null,null,null,null,null,null,null,null,null,null,null,null,null,null,null,null,null,null,null,null,null,null,null,null,null,null,null,null,null,null,null,null,null,null,null,null,null,null,null,null,null,null,null,null,null,null,null,null,null,null,null,null,null,null,null,null,null,null,null,null,null,null,null,null,null,null,null,null,null,null,null,null,null,null,null,null,null,null,null,null,null,null,null,null,null,null,null,null,null,null,null,null,null,null,null,null,null,null,null,null,null,null,null,null,null,null,null,null,null,null,null,null,null,null,null,null,null,null,null,null,null,null,null,null,null,null,null,null,null,null,null,null,null,null,null,null,null,null,null,null,null,null,null,null,null,null,null,null,null,null,null,null,null,null,null,null,null,null,null,null,null,null,null,null,null,null,null,null,null,null,null,null,null,null,null,null,null,null,null,null,null,null,3,"Supplying, Conveying and fixing spls. Including ea","item4",10,"Nos"]
[1.05,"Providing and Laying non-pressure (NP3) RCC socket & spigot pipes with rubber gasket joint including testing of joints. [ Conforming to IS ; 458-1988, ISI marked laying as per IS 783:1985)",null,null,null,null,null,null,null,null,null,null,null,null,null,null,null,null,null,null,null,null,null,null,null,null,null,null,null,null,null,null,null,null,null,null,null,null,null,null,null,null,null,null,null,null,null,null,null,null,null,null,null,null,null,null,null,null,null,null,null,null,null,null,null,null,null,null,null,null,null,null,null,null,null,null,null,null,null,null,null,null,null,null,null,null,null,null,null,null,null,null,null,null,null,null,null,null,null,null,null,null,null,null,null,null,null,null,null,null,null,null,null,null,null,null,null,null,null,null,null,null,null,null,null,null,null,null,null,null,null,null,null,null,null,null,null,null,null,null,null,null,null,null,null,null,null,null,null,null,null,null,null,null,null,null,null,null,null,null,null,null,null,null,null,null,null,null,null,null,null,null,null,null,null,null,null,null,null,null,null,null,null,null,null,null,null,null,null,null,null,null,null,null,null,null,null,null,null,null,null,null,null,null,null,null,null,null,null,null,null,null,null,null,null,null,null,null,null,null,null,null,null,null,null,null,null,null,null,null,null,null,null,null,null,null,null,null,3,"Supplying, Conveying and fixing spls. Including ea","item4",10,"Nos"]
[1.0501,"300 MM ",null,110,"Mtr",744.3,null,null,"Excess(+)",{"$f":"IF(I19=\"Less(-)\",-1,1)","v":1},"Full Conversion","INR",null,null,null,null,null,null,null,null,null,null,null,null,null,null,null,null,null,null,null,null,null,null,null,null,null,null,null,null,null,null,null,null,null,null,null,null,null,null,null,null,{"$f":"total_amount_ba($B$2,$D$2,D19,F19,J19,K19,M19)","v":81873},{"$f":"BA19+SUM(N19:AZ19)","v":81873},{"$f":"SpellNumber(L19,BB19)","v":"INR  Eighty One Thousand Eight Hundred & Seventy Three  Only"},null,null,null,null,null,null,null,null,null,null,null,null,null,null,null,null,null,null,null,null,null,null,null,null,null,null,null,null,null,null,null,null,null,null,null,null,null,null,null,null,null,null,null,null,null,null,null,null,null,null,null,null,null,null,null,null,null,null,null,null,null,null,null,null,null,null,null,null,null,null,null,null,null,null,null,null,null,null,null,null,null,null,null,null,null,null,null,null,null,null,null,null,null,null,null,null,null,null,null,null,null,null,null,null,null,null,null,null,null,null,null,null,null,null,null,null,null,null,null,null,null,null,null,null,null,null,null,null,null,null,null,null,null,null,null,null,null,null,null,null,null,null,null,null,null,null,null,null,null,null,null,null,null,null,null,null,null,null,null,null,null,null,null,null,null,null,null,null,null,null,null,null,null,null,null,null,null,null,null,null,null,null,null,1.01,"Supplying, Conveying and fixing spls. Including eart","item1",123.223,"Nos"]
[1.0502,"600 MM",null,55,"Mtr",2697.3,null,null,"Excess(+)",{"$f":"IF(I20=\"Less(-)\",-1,1)","v":1},"Full Conversion","INR",null,null,null,null,null,null,null,null,null,null,null,null,null,null,null,null,null,null,null,null,null,null,null,null,null,null,null,null,null,null,null,null,null,null,null,null,null,null,null,null,{"$f":"total_amount_ba($B$2,$D$2,D20,F20,J20,K20,M20)","v":148351.5},{"$f":"BA20+SUM(N20:AZ20)","v":148351.5},{"$f":"SpellNumber(L20,BB20)","v":"INR  One Lakh Forty Eight Thousand Three Hundred & Fifty One  and Paise Fifty Only"},null,null,null,null,null,null,null,null,null,null,null,null,null,null,null,null,null,null,null,null,null,null,null,null,null,null,null,null,null,null,null,null,null,null,null,null,null,null,null,null,null,null,null,null,null,null,null,null,null,null,null,null,null,null,null,null,null,null,null,null,null,null,null,null,null,null,null,null,null,null,null,null,null,null,null,null,null,null,null,null,null,null,null,null,null,null,null,null,null,null,null,null,null,null,null,null,null,null,null,null,null,null,null,null,null,null,null,null,null,null,null,null,null,null,null,null,null,null,null,null,null,null,null,null,null,null,null,null,null,null,null,null,null,null,null,null,null,null,null,null,null,null,null,null,null,null,null,null,null,null,null,null,null,null,null,null,null,null,null,null,null,null,null,null,null,null,null,null,null,null,null,null,null,null,null,null,null,null,null,null,null,null,null,1.02,"Construction of chamber for 100mm sluice plates","item2",213,"Nos"]
[1.06,"Constructing Brick masonry manhole in cement mortar 1:4 (1cement:4 fine sand) RCC top slab Cement Concrete grade M-15 (Nominal Mix) with stone aggregate 20mm nominal size, foundation in cement concrete grade M-7.5 (Nominal Mix) with stone aggregate 40mm nominal size, inside plastering 12 mm thick with cement mortar 1:3 (1\ncement:3 coarse sand) finished with a floating coat of neat cement and making channels in Cement Concrete grade M-15 (Nominal Mix) with stone aggregate 20mm nominal size including finishing the channel to shape, curing etc. with CI cover with frame etc.",null,null,null,null,null,null,null,null,null,null,null,null,null,null,null,null,null,null,null,null,null,null,null,null,null,null,null,null,null,null,null,null,null,null,null,null,null,null,null,null,null,null,null,null,null,null,null,null,null,null,null,null,null,null,null,null,null,null,null,null,null,null,null,null,null,null,null,null,null,null,null,null,null,null,null,null,null,null,null,null,null,null,null,null,null,null,null,null,null,null,null,null,null,null,null,null,null,null,null,null,null,null,null,null,null,null,null,null,null,null,null,null,null,null,null,null,null,null,null,null,null,null,null,null,null,null,null,null,null,null,null,null,null,null,null,null,null,null,null,null,null,null,null,null,null,null,null,null,null,null,null,null,null,null,null,null,null,null,null,null,null,null,null,null,null,null,null,null,null,null,null,null,null,null,null,null,null,null,null,null,null,null,null,null,null,null,null,null,null,null,null,null,null,null,null,null,null,null,null,null,null,null,null,null,null,null,null,null,null,null,null,null,null,null,null,null,null,null,null,null,null,null,null,null,null,null,null,null,null,null,null,null,null,null,null,null,3,"Supplying, Conveying and fixing spls. Including ea","item4",10,"Nos"]
[1.0601,"Man hole with above specifications having inside size 90x80 cm and 60 cm deep including C.I. cover with frame (light duty) 455x610 mm internal dimensions total weight of cover and frame to be not less than 38 kg (weight of cover 23 kg and weight of frame 15 kg):",null,9,"Each",7225.2,null,null,"Excess(+)",{"$f":"IF(I22=\"Less(-)\",-1,1)","v":1},"Full Conversion","INR",null,null,null,null,null,null,null,null,null,null,null,null,null,null,null,null,null,null,null,null,null,null,null,null,null,null,null,null,null,null,null,null,null,null,null,null,null,null,null,null,{"$f":"total_amount_ba($B$2,$D$2,D22,F22,J22,K22,M22)","v":65026.8},{"$f":"BA22+SUM(N22:AZ22)","v":65026.8},{"$f":"SpellNumber(L22,BB22)","v":"INR  Sixty Five Thousand  &Twenty Six  and Paise Eighty Only"},null,null,null,null,null,null,null,null,null,null,null,null,null,null,null,null,null,null,null,null,null,null,null,null,null,null,null,null,null,null,null,null,null,null,null,null,null,null,null,null,null,null,null,null,null,null,null,null,null,null,null,null,null,null,null,null,null,null,null,null,null,null,null,null,null,null,null,null,null,null,null,null,null,null,null,null,null,null,null,null,null,null,null,null,null,null,null,null,null,null,null,null,null,null,null,null,null,null,null,null,null,null,null,null,null,null,null,null,null,null,null,null,null,null,null,null,null,null,null,null,null,null,null,null,null,null,null,null,null,null,null,null,null,null,null,null,null,null,null,null,null,null,null,null,null,null,null,null,null,null,null,null,null,null,null,null,null,null,null,null,null,null,null,null,null,null,null,null,null,null,null,null,null,null,null,null,null,null,null,null,null,null,null,1.01,"Supplying, Conveying and fixing spls. Including eart","item1",123.223,"Nos"]
[1.0602,"Man hole with above specifications having inside size 120x90 cm and 90 cm deep including C.I. cover with frame (heavy duty) 560 mm internal diameter, total weight of cover and frame to be not less than 208 kg (weight of cover 108 kg and weight of frame 100 kg)ground moulded chamber burnt bricks with including cost",null,5,"Each",18351.900000000001,null,null,"Excess(+)",{"$f":"IF(I23=\"Less(-)\",-1,1)","v":1},"Full Conversion","INR",null,null,null,null,null,null,null,null,null,null,null,null,null,null,null,null,null,null,null,null,null,null,null,null,null,null,null,null,null,null,null,null,null,null,null,null,null,null,null,null,{"$f":"total_amount_ba($B$2,$D$2,D23,F23,J23,K23,M23)","v":91759.5},{"$f":"BA23+SUM(N23:AZ23)","v":91759.5},{"$f":"SpellNumber(L23,BB23)","v":"INR  Ninety One Thousand Seven Hundred & Fifty Nine  and Paise Fifty Only"},null,null,null,null,null,null,null,null,null,null,null,null,null,null,null,null,null,null,null,null,null,null,null,null,null,null,null,null,null,null,null,null,null,null,null,null,null,null,null,null,null,null,null,null,null,null,null,null,null,null,null,null,null,null,null,null,null,null,null,null,null,null,null,null,null,null,null,null,null,null,null,null,null,null,null,null,null,null,null,null,null,null,null,null,null,null,null,null,null,null,null,null,null,null,null,null,null,null,null,null,null,null,null,null,null,null,null,null,null,null,null,null,null,null,null,null,null,null,null,null,null,null,null,null,null,null,null,null,null,null,null,null,null,null,null,null,null,null,null,null,null,null,null,null,null,null,null,null,null,null,null,null,null,null,null,null,null,null,null,null,null,null,null,null,null,null,null,null,null,null,null,null,null,null,null,null,null,null,null,null,null,null,null,1.02,"Construction of chamber for 100mm sluice plates","item2",213,"Nos"]
[1.07,"Extra for depth of man holes given at item 14.2",null,null,null,null,null,null,null,null,null,null,null,null,null,null,null,null,null,null,null,null,null,null,null,null,null,null,null,null,null,null,null,null,null,null,null,null,null,null,null,null,null,null,null,null,null,null,null,null,null,null,null,null,null,null,null,null,null,null,null,null,null,null,null,null,null,null,null,null,null,null,null,null,null,null,null,null,null,null,null,null,null,null,null,null,null,null,null,null,null,null,null,null,null,null,null,null,null,null,null,null,null,null,null,null,null,null,null,null,null,null,null,null,null,null,null,null,null,null,null,null,null,null,null,null,null,null,null,null,null,null,null,null,null,null,null,null,null,null,null,null,null,null,null,null,null,null,null,null,null,null,null,null,null,null,null,null,null,null,null,null,null,null,null,null,null,null,null,null,null,null,null,null,null,null,null,null,null,null,null,null,null,null,null,null,null,null,null,null,null,null,null,null,null,null,null,null,null,null,null,null,null,null,null,null,null,null,null,null,null,null,null,null,null,null,null,null,null,null,null,null,null,null,null,null,null,null,null,null,null,null,null,null,null,null,null,null,3,"Supplying, Conveying and fixing spls. Including ea","item4",10,"Nos"]
[1.0701000000000001,"90x80cm size manhole",null,4,"Mtr",4390.2,null,null,"Excess(+)",{"$f":"IF(I25=\"Less(-)\",-1,1)","v":1},"Full Conversion","INR",null,null,null,null,null,null,null,null,null,null,null,null,null,null,null,null,null,null,null,null,null,null,null,null,null,null,null,null,null,null,null,null,null,null,null,null,null,null,null,null,{"$f":"total_amount_ba($B$2,$D$2,D25,F25,J25,K25,M25)","v":17560.8},{"$f":"BA25+SUM(N25:AZ25)","v":17560.8},{"$f":"SpellNumber(L25,BB25)","v":"INR  Seventeen Thousand Five Hundred & Sixty  and Paise Eighty Only"},null,null,null,null,null,null,null,null,null,null,null,null,null,null,null,null,null,null,null,null,null,null,null,null,null,null,null,null,null,null,null,null,null,null,null,null,null,null,null,null,null,null,null,null,null,null,null,null,null,null,null,null,null,null,null,null,null,null,null,null,null,null,null,null,null,null,null,null,null,null,null,null,null,null,null,null,null,null,null,null,null,null,null,null,null,null,null,null,null,null,null,null,null,null,null,null,null,null,null,null,null,null,null,null,null,null,null,null,null,null,null,null,null,null,null,null,null,null,null,null,null,null,null,null,null,null,null,null,null,null,null,null,null,null,null,null,null,null,null,null,null,null,null,null,null,null,null,null,null,null,null,null,null,null,null,null,null,null,null,null,null,null,null,null,null,null,null,null,null,null,null,null,null,null,null,null,null,null,null,null,null,null,null,1.01,"Supplying, Conveying and fixing spls. Including eart","item1",123.223,"Nos"]
[1.0702,"120x90cm size manhole ",null,2.5,"Mtr",5252.4,null,null,"Excess(+)",{"$f":"IF(I26=\"Less(-)\",-1,1)","v":1},"Full Conversion","INR",null,null,null,null,null,null,null,null,null,null,null,null,null,null,null,null,null,null,null,null,null,null,null,null,null,null,null,null,null,null,null,null,null,null,null,null,null,null,null,null,{"$f":"total_amount_ba($B$2,$D$2,D26,F26,J26,K26,M26)","v":13131},{"$f":"BA26+SUM(N26:AZ26)","v":13131},{"$f":"SpellNumber(L26,BB26)","v":"INR  Thirteen Thousand One Hundred & Thirty One  Only"},null,null,null,null,null,null,null,null,null,null,null,null,null,null,null,null,null,null,null,null,null,null,null,null,null,null,null,null,null,null,null,null,null,null,null,null,null,null,null,null,null,null,null,null,null,null,null,null,null,null,null,null,null,null,null,null,null,null,null,null,null,null,null,null,null,null,null,null,null,null,null,null,null,null,null,null,null,null,null,null,null,null,null,null,null,null,null,null,null,null,null,null,null,null,null,null,null,null,null,null,null,null,null,null,null,null,null,null,null,null,null,null,null,null,null,null,null,null,null,null,null,null,null,null,null,null,null,null,null,null,null,null,null,null,null,null,null,null,null,null,null,null,null,null,null,null,null,null,null,null,null,null,null,null,null,null,null,null,null,null,null,null,null,null,null,null,null,null,null,null,null,null,null,null,null,null,null,null,null,null,null,null,null,1.02,"Construction of chamber for 100mm sluice plates","item2",213,"Nos"]
[1.08,"Providing & laying mechanically mixed cement concrete 20mm maximum size graded crushed stone including cost of centering & shuttering.",null,9.9,"CuM",4300.2,null,null,"Excess(+)",{"$f":"IF(I27=\"Less(-)\",-1,1)","v":1},"Full Conversion","INR",null,null,null,null,null,null,null,null,null,null,null,null,null,null,null,null,null,null,null,null,null,null,null,null,null,null,null,null,null,null,null,null,null,null,null,null,null,null,null,null,{"$f":"total_amount_ba($B$2,$D$2,D27,F27,J27,K27,M27)","v":42571.98},{"$f":"BA27+SUM(N27:AZ27)","v":42571.98},{"$f":"SpellNumber(L27,BB27)","v":"INR  Forty Two Thousand Five Hundred & Seventy One  and Paise Ninety Eight Only"},null,null,null,null,null,null,null,null,null,null,null,null,null,null,null,null,null,null,null,null,null,null,null,null,null,null,null,null,null,null,null,null,null,null,null,null,null,null,null,null,null,null,null,null,null,null,null,null,null,null,null,null,null,null,null,null,null,null,null,null,null,null,null,null,null,null,null,null,null,null,null,null,null,null,null,null,null,null,null,null,null,null,null,null,null,null,null,null,null,null,null,null,null,null,null,null,null,null,null,null,null,null,null,null,null,null,null,null,null,null,null,null,null,null,null,null,null,null,null,null,null,null,null,null,null,null,null,null,null,null,null,null,null,null,null,null,null,null,null,null,null,null,null,null,null,null,null,null,null,null,null,null,null,null,null,null,null,null,null,null,null,null,null,null,null,null,null,null,null,null,null,null,null,null,null,null,null,null,null,null,null,null,null,2,"Construction of chamber for 100mm sluices valve","item3",10,"Nos"]
[2,"CIVIL WORKS"]
[2.0099999999999998,"Demolishing cement concrete manually/by mechanical means including disposal of material within 50 meters lead as per direction of Engineer-in-charge.\n1:3:6 or richer mix",null,201.6,"CuM",427.5,null,null,"Excess(+)",{"$f":"IF(I29=\"Less(-)\",-1,1)","v":1},"Full Conversion","INR",null,null,null,null,null,null,null,null,null,null,null,null,null,null,null,null,null,null,null,null,null,null,null,null,null,null,null,null,null,null,null,null,null,null,null,null,null,null,null,null,{"$f":"total_amount_ba($B$2,$D$2,D29,F29,J29,K29,M29)","v":86184},{"$f":"BA29+SUM(N29:AZ29)","v":86184},{"$f":"SpellNumber(L29,BB29)","v":"INR  Eighty Six Thousand One Hundred & Eighty Four  Only"},null,null,null,null,null,null,null,null,null,null,null,null,null,null,null,null,null,null,null,null,null,null,null,null,null,null,null,null,null,null,null,null,null,null,null,null,null,null,null,null,null,null,null,null,null,null,null,null,null,null,null,null,null,null,null,null,null,null,null,null,null,null,null,null,null,null,null,null,null,null,null,null,null,null,null,null,null,null,null,null,null,null,null,null,null,null,null,null,null,null,null,null,null,null,null,null,null,null,null,null,null,null,null,null,null,null,null,null,null,null,null,null,null,null,null,null,null,null,null,null,null,null,null,null,null,null,null,null,null,null,null,null,null,null,null,null,null,null,null,null,null,null,null,null,null,null,null,null,null,null,null,null,null,null,null,null,null,null,null,null,null,null,null,null,null,null,null,null,null,null,null,null,null,null,null,null,null,null,null,null,null,null,null,1.01,"Supplying, Conveying and fixing spls. Including eart","item1",123.223,"Nos"]
[2.02,"Earth work in excavation by mechanical means (Hydraulic excavator) / manual means over areas (exceeding 30cm in depth. 1.5m in width as well as 10 sqm on plan) including disposal of excavated earth, lead upto 50m and lift upto 1.5m, disposed earth to be levelled and neatly dressed.\nAll kinds of Soil ",null,1478,"CuM",114.3,null,null,"Excess(+)",1,"Full Conversion","INR",null,null,null,null,null,null,null,null,null,null,null,null,null,null,null,null,null,null,null,null,null,null,null,null,null,null,null,null,null,null,null,null,null,null,null,null,null,null,null,null,168935.4,168935.4,"INR  One Lakh Sixty Eight Thousand Nine Hundred & Thirty Five  and Paise Forty Only",null,null,null,null,null,null,null,null,null,null,null,null,null,null,null,null,null,null,null,null,null,null,null,null,null,null,null,null,null,null,null,null,null,null,null,null,null,null,null,null,null,null,null,null,null,null,null,null,null,null,null,null,null,null,null,null,null,null,null,null,null,null,null,null,null,null,null,null,null,null,null,null,null,null,null,null,null,null,null,null,null,null,null,null,null,null,null,null,null,null,null,null,null,null,null,null,null,null,null,null,null,null,null,null,null,null,null,null,null,null,null,null,null,null,null,null,null,null,null,null,null,null,null,null,null,null,null,null,null,null,null,null,null,null,null,null,null,null,null,null,null,null,null,null,null,null,null,null,null,null,null,null,null,null,null,null,null,null,null,null,null,null,null,null,null,null,null,null,null,null,null,null,null,null,null,null,null,null,null,null,null,null,null,1.01,"Supplying, Conveying and fixing spls. Including eart","item1",123.223,"Nos"]
[2.0299999999999998,"Supplying and filling in plinth under floors including, watering, ramming consolidating and dressing complete.\nCrusher Stone Dust ",null,67.2,"CuM",565.20000000000005,null,null,"Excess(+)",1,"Full Conversion","INR",null,null,null,null,null,null,null,null,null,null,null,null,null,null,null,null,null,null,null,null,null,null,null,null,null,null,null,null,null,null,null,null,null,null,null,null,null,null,null,null,37981.440000000002,37981.440000000002,"INR  Thirty Seven Thousand Nine Hundred & Eighty One  and Paise Forty Four Only",null,null,null,null,null,null,null,null,null,null,null,null,null,null,null,null,null,null,null,null,null,null,null,null,null,null,null,null,null,null,null,null,null,null,null,null,null,null,null,null,null,null,null,null,null,null,null,null,null,null,null,null,null,null,null,null,null,null,null,null,null,null,null,null,null,null,null,null,null,null,null,null,null,null,null,null,null,null,null,null,null,null,null,null,null,null,null,null,null,null,null,null,null,null,null,null,null,null,null,null,null,null,null,null,null,null,null,null,null,null,null,null,null,null,null,null,null,null,null,null,null,null,null,null,null,null,null,null,null,null,null,null,null,null,null,null,null,null,null,null,null,null,null,null,null,null,null,null,null,null,null,null,null,null,null,null,null,null,null,null,null,null,null,null,null,null,null,null,null,null,null,null,null,null,null,null,null,null,null,null,null,null,null,1.01,"Supplying, Conveying and fixing spls. Including eart","item1",123.223,"Nos"]
[2.04,"Filling by available excavated earth (excluding rock) in trenches, plinth, sides of foundations etc. in layers not exceeding 20cm in depth, consolidating each deposited layer by ramming and watering, lead up to 50 m and lift upto 1.5 m.\nAll kinds of soils",null,910.14,"CuM",26.1,null,null,"Excess(+)",1,"Full Conversion","INR",null,null,null,null,null,null,null,null,null,null,null,null,null,null,null,null,null,null,null,null,null,null,null,null,null,null,null,null,null,null,null,null,null,null,null,null,null,null,null,null,{"$f":"total_amount_ba($B$2,$D$2,D32,F32,J32,K32,M32)","v":23754.65},{"$f":"BA32+SUM(N32:AZ32)","v":23754.65},{"$f":"SpellNumber(L32,BB32)","v":"INR  Twenty Three Thousand Seven Hundred & Fifty Four  and Paise Sixty Five Only"},null,null,null,null,null,null,null,null,null,null,null,null,null,null,null,null,null,null,null,null,null,null,null,null,null,null,null,null,null,null,null,null,null,null,null,null,null,null,null,null,null,null,null,null,null,null,null,null,null,null,null,null,null,null,null,null,null,null,null,null,null,null,null,null,null,null,null,null,null,null,null,null,null,null,null,null,null,null,null,null,null,null,null,null,null,null,null,null,null,null,null,null,null,null,null,null,null,null,null,null,null,null,null,null,null,null,null,null,null,null,null,null,null,null,null,null,null,null,null,null,null,null,null,null,null,null,null,null,null,null,null,null,null,null,null,null,null,null,null,null,null,null,null,null,null,null,null,null,null,null,null,null,null,null,null,null,null,null,null,null,null,null,null,null,null,null,null,null,null,null,null,null,null,null,null,null,null,null,null,null,null,null,null,1.02,"Construction of chamber for 100mm sluice plates","item2",213,"Nos"]
[2.0499999999999998,"Providing and laying in position cement concrete of specified grade excluding the cost of centering and shuttering All work up to plinth level.\n\nCement concrete grade M-20(Nominal Mix) with 20 mm maximum size of stone aggregate ",null,201.6,"CuM",4134.6000000000004,null,null,"Excess(+)",1,"Full Conversion","INR",null,null,null,null,null,null,null,null,null,null,null,null,null,null,null,null,null,null,null,null,null,null,null,null,null,null,null,null,null,null,null,null,null,null,null,null,null,null,null,null,833535.36,833535.36,"INR  Eight Lakh Thirty Three Thousand Five Hundred & Thirty Five  and Paise Thirty Six Only",null,null,null,null,null,null,null,null,null,null,null,null,null,null,null,null,null,null,null,null,null,null,null,null,null,null,null,null,null,null,null,null,null,null,null,null,null,null,null,null,null,null,null,null,null,null,null,null,null,null,null,null,null,null,null,null,null,null,null,null,null,null,null,null,null,null,null,null,null,null,null,null,null,null,null,null,null,null,null,null,null,null,null,null,null,null,null,null,null,null,null,null,null,null,null,null,null,null,null,null,null,null,null,null,null,null,null,null,null,null,null,null,null,null,null,null,null,null,null,null,null,null,null,null,null,null,null,null,null,null,null,null,null,null,null,null,null,null,null,null,null,null,null,null,null,null,null,null,null,null,null,null,null,null,null,null,null,null,null,null,null,null,null,null,null,null,null,null,null,null,null,null,null,null,null,null,null,null,null,null,null,null,null,1.02,"Construction of chamber for 100mm sluice plates","item2",213,"Nos"]
[2.06,"Providing and laying in position cement concrete of specified grade excluding the cost of centering and shuttering All work up to plinth level.\n\nCement concrete grade M-15 (Nominal Mix) with 20 mm maximum size of stone aggregate ",null,67.2,"CuM",3748.6,null,null,"Excess(+)",1,"Full Conversion","INR",null,null,null,null,null,null,null,null,null,null,null,null,null,null,null,null,null,null,null,null,null,null,null,null,null,null,null,null,null,null,null,null,null,null,null,null,null,null,null,null,{"$f":"total_amount_ba($B$2,$D$2,D34,F34,J34,K34,M34)","v":251905.92000000001},{"$f":"BA34+SUM(N34:AZ34)","v":251905.92000000001},{"$f":"SpellNumber(L34,BB34)","v":"INR  Two Lakh Fifty One Thousand Nine Hundred & Five  and Paise Ninety Two Only"},null,null,null,null,null,null,null,null,null,null,null,null,null,null,null,null,null,null,null,null,null,null,null,null,null,null,null,null,null,null,null,null,null,null,null,null,null,null,null,null,null,null,null,null,null,null,null,null,null,null,null,null,null,null,null,null,null,null,null,null,null,null,null,null,null,null,null,null,null,null,null,null,null,null,null,null,null,null,null,null,null,null,null,null,null,null,null,null,null,null,null,null,null,null,null,null,null,null,null,null,null,null,null,null,null,null,null,null,null,null,null,null,null,null,null,null,null,null,null,null,null,null,null,null,null,null,null,null,null,null,null,null,null,null,null,null,null,null,null,null,null,null,null,null,null,null,null,null,null,null,null,null,null,null,null,null,null,null,null,null,null,null,null,null,null,null,null,null,null,null,null,null,null,null,null,null,null,null,null,null,null,null,null,2,"Construction of chamber for 100mm sluices valve","item3",10,"Nos"]
[2.0699999999999998,"Providing and laying in position machine batched, machine mixed and machine vibrated design mix cement concrete of specified grade for reinforced cement concrete work including pumping of concrete to site of laying but excluding the cost of centering, shuttering, finishing and reinforcement. including Admixtures in recommended  proportions as per IS 9103 to accelerate, retard setting of concrete, improve workability without impairing strength and durability as per direction of Engineer-in-charge. M-25 grade reinforced cement concrete by using 410 kg. of cement per cum of concrete. All work up to floor 2 level.",null,434.07,"CuM",4720.5,null,null,"Excess(+)",1,"Full Conversion","INR",null,null,null,null,null,null,null,null,null,null,null,null,null,null,null,null,null,null,null,null,null,null,null,null,null,null,null,null,null,null,null,null,null,null,null,null,null,null,null,null,2049027.44,2049027.44,"INR  Twenty Lakh Forty Nine Thousand  &Twenty Seven  and Paise Forty Four Only",null,null,null,null,null,null,null,null,null,null,null,null,null,null,null,null,null,null,null,null,null,null,null,null,null,null,null,null,null,null,null,null,null,null,null,null,null,null,null,null,null,null,null,null,null,null,null,null,null,null,null,null,null,null,null,null,null,null,null,null,null,null,null,null,null,null,null,null,null,null,null,null,null,null,null,null,null,null,null,null,null,null,null,null,null,null,null,null,null,null,null,null,null,null,null,null,null,null,null,null,null,null,null,null,null,null,null,null,null,null,null,null,null,null,null,null,null,null,null,null,null,null,null,null,null,null,null,null,null,null,null,null,null,null,null,null,null,null,null,null,null,null,null,null,null,null,null,null,null,null,null,null,null,null,null,null,null,null,null,null,null,null,null,null,null,null,null,null,null,null,null,null,null,null,null,null,null,null,null,null,null,null,null,2,"Construction of chamber for 100mm sluices valve","item3",10,"Nos"]
[2.08,"Reinforcement for R.C.C. work including straightening, cutting, bending, placing in position and binding including cost of binding wire upto floor two level including all wastage etc. complete.\n\nThermo-Mechanically Treated bars.",null,37981.440000000002,"Nos",54,null,null,"Excess(+)",1,"Full Conversion","INR",null,null,null,null,null,null,null,null,null,null,null,null,null,null,null,null,null,null,null,null,null,null,null,null,null,null,null,null,null,null,null,null,null,null,null,null,null,null,null,null,2050997.76,2050997.76,"INR  Twenty Lakh Fifty Thousand Nine Hundred & Ninety Seven  and Paise Seventy Six Only",null,null,null,null,null,null,null,null,null,null,null,null,null,null,null,null,null,null,null,null,null,null,null,null,null,null,null,null,null,null,null,null,null,null,null,null,null,null,null,null,null,null,null,null,null,null,null,null,null,null,null,null,null,null,null,null,null,null,null,null,null,null,null,null,null,null,null,null,null,null,null,null,null,null,null,null,null,null,null,null,null,null,null,null,null,null,null,null,null,null,null,null,null,null,null,null,null,null,null,null,null,null,null,null,null,null,null,null,null,null,null,null,null,null,null,null,null,null,null,null,null,null,null,null,null,null,null,null,null,null,null,null,null,null,null,null,null,null,null,null,null,null,null,null,null,null,null,null,null,null,null,null,null,null,null,null,null,null,null,null,null,null,null,null,null,null,null,null,null,null,null,null,null,null,null,null,null,null,null,null,null,null,null,1.01,"Supplying, Conveying and fixing spls. Including eart","item1",123.223,"Nos"]
["Total in Figures",null,null,null,null,null,null,null,null,null,null,null,null,null,null,null,null,null,null,null,null,null,null,null,null,null,null,null,null,null,null,null,null,null,null,null,null,null,null,null,null,null,null,null,null,null,null,null,null,null,null,null,{"$f":"SUM(BA14:BA36)","v":6005504.6900000004},{"$f":"SUM(BB14:BB36)","v":6005504.6900000004},{"$f":"SpellNumber($E$2,BB37)","v":"INR  Sixty Lakh Five Thousand Five Hundred & Four  and Paise Sixty Nine Only"},null,null,null,null,null,null,null,null,null,null,null,null,null,null,null,null,null,null,null,null,null,null,null,null,null,null,null,null,null,null,null,null,null,null,null,null,null,null,null,null,null,null,null,null,null,null,null,null,null,null,null,null,null,null,null,null,null,null,null,null,null,null,null,null,null,null,null,null,null,null,null,null,null,null,null,null,null,null,null,null,null,null,null,null,null,null,null,null,null,null,null,null,null,null,null,null,null,null,null,null,null,null,null,null,null,null,null,null,null,null,null,null,null,null,null,null,null,null,null,null,null,null,null,null,null,null,null,null,null,null,null,null,null,null,null,null,null,null,null,null,null,null,null,null,null,null,null,null,null,null,null,null,null,null,null,null,null,null,null,null,null,null,null,null,null,null,null,null,null,null,null,null,null,null,null,null,null,null,null,null,null,null,null,4,"Construction of chamber for 100mm sluice plates","item5",10,"Nos"]
["Quoted Rate in Figures",null,null,null,"Select",null,null,null,null,null,null,null,null,null,null,null,null,null,null,null,null,null,null,null,null,null,null,null,null,null,null,null,null,null,null,null,null,null,null,null,null,null,null,null,null,null,null,null,null,null,null,null,{"$f":"IF(ISBLANK(F38),0,IF(E38=\"Excess (+)\",ROUND(BA37+(BA37*F38),2),IF(E38=\"Less (-)\",ROUND(BA37+(BA37*F38*(-1)),2),IF(E38=\"At Par\",BA37,0))))","v":0},{"$f":"ROUND(BA38,0)","v":0},{"$f":"SpellNumber($E$2,BB38)","v":"INR Zero Only"}]
["Quoted Rate in Words",null,{"$f":"SpellNumber($E$2,BB38)","v":"INR Zero Only"}]

{"sheet":"Macros","index":2,"n_rows":6,"n_cols":5,"rows_kept":6,"cut":false,"hidden":false,"merged":[[5,4,13,10]]}
[]
[]
[]
[]
[]
[null,null,null,null,"Please Enable Macros to View BoQ information"]